[Event "Early-Titled-Tuesday-Blitz-September-26-2023"]
[Site "Chess.com"]
[Date "2023.09.26"]
[Round "7"]
[White "Igrok3069"]
[Black "wannabe2700"]
[Result "0-1"]
[WhiteElo "2867"]
[BlackElo "2669"]
[TimeControl "180+1"]
[EndTime "9:18:42 PDT"]
[Termination "wannabe2700 won on time"]

1. d4 {[%clk 0:02:44]} 1... f5 {[%clk 0:02:57.6]} 2. c4 {[%clk 0:02:41.4]} 2...
Nf6 {[%clk 0:02:57.8]} 3. Nc3 {[%clk 0:02:41.7]} 3... g6 {[%clk 0:02:58.2]} 4.
h4 {[%clk 0:02:41.3]} 4... d6 {[%clk 0:02:55.5]} 5. Bg5 {[%clk 0:02:41.4]} 5...
Bg7 {[%clk 0:02:52.2]} 6. e3 {[%clk 0:02:37.5]} 6... h6 {[%clk 0:02:47.5]} 7.
Bxf6 {[%clk 0:02:36.6]} 7... Bxf6 {[%clk 0:02:48.4]} 8. Nd5 {[%clk 0:02:08.7]}
8... Bg7 {[%clk 0:02:48]} 9. Nf4 {[%clk 0:02:09]} 9... Kf7 {[%clk 0:02:42.9]}
10. c5 {[%clk 0:01:53.6]} 10... e6 {[%clk 0:02:08.7]} 11. Nf3 {[%clk 0:01:45.8]}
11... dxc5 {[%clk 0:02:02.2]} 12. Bc4 {[%clk 0:01:45]} 12... c6 {[%clk
0:02:01.5]} 13. Qb3 {[%clk 0:00:29.1]} 13... Qa5+ {[%clk 0:02:00.9]} 14. Ke2
{[%clk 0:00:25.2]} 14... Re8 {[%clk 0:02:01]} 15. Rhd1 {[%clk 0:00:06.9]} 15...
b5 {[%clk 0:02:00.4]} 16. Bxe6+ {[%clk 0:00:06.2]} 16... Bxe6 {[%clk 0:02:00.4]}
17. Nxe6 {[%clk 0:00:05.9]} 17... Rxe6 {[%clk 0:02:01.3]} 18. dxc5 {[%clk
0:00:05.6]} 18... Qa4 {[%clk 0:01:48.9]} 19. Qxa4 {[%clk 0:00:05.4]} 19... bxa4
{[%clk 0:01:49.8]} 20. Rac1 {[%clk 0:00:05.6]} 20... Na6 {[%clk 0:01:47.7]} 21.
Rc4 {[%clk 0:00:05.4]} 21... Bxb2 {[%clk 0:01:38.6]} 22. Nd4 {[%clk 0:00:02.9]}
22... Bxd4 {[%clk 0:01:37.5]} 23. Rdxd4 {[%clk 0:00:03.8]} 23... a3 {[%clk
0:01:36]} 24. Rc3 {[%clk 0:00:03.1]} 24... Rb8 {[%clk 0:01:27.3]} 25. Rxa3
{[%clk 0:00:02.6]} 25... Rb2+ {[%clk 0:01:25.8]} 26. Rd2 {[%clk 0:00:02.3]}
26... Rxd2+ {[%clk 0:01:25.7]} 27. Kxd2 {[%clk 0:00:03.2]} 27... Nxc5 {[%clk
0:01:26.3]} 28. Rxa7+ {[%clk 0:00:04.1]} 28... Re7 {[%clk 0:01:26.6]} 29. Ra5
{[%clk 0:00:03.2]} 29... Ne4+ {[%clk 0:01:26.7]} 30. Ke2 {[%clk 0:00:02.4]}
30... Rd7 {[%clk 0:01:26.3]} 31. f3 {[%clk 0:00:02.4]} 31... Nc3+ {[%clk
0:01:26.6]} 32. Kf2 {[%clk 0:00:02.3]} 32... Rd1 {[%clk 0:01:26.2]} 33. Kg3
{[%clk 0:00:02.8]} 33... Rd2 {[%clk 0:01:24.8]} 34. Rc5 {[%clk 0:00:02.6]} 34...
Ne2+ {[%clk 0:01:14]} 35. Kh2 {[%clk 0:00:02.8]} 35... f4 {[%clk 0:01:00]} 36.
e4 {[%clk 0:00:01.3]} 36... Ng3 {[%clk 0:00:59.8]} 0-1

[Event "Early-Titled-Tuesday-Blitz-September-26-2023"]
[Site "Chess.com"]
[Date "2023.09.26"]
[Round "7"]
[White "Korchmar_Vasiliy"]
[Black "WindWhistler11"]
[Result "1-0"]
[WhiteElo "2691"]
[BlackElo "2465"]
[TimeControl "180+1"]
[EndTime "9:18:43 PDT"]
[Termination "Korchmar_Vasiliy won on time"]

1. e4 {[%clk 0:03:00.9]} 1... e6 {[%clk 0:02:58.3]} 2. d4 {[%clk 0:03:01]} 2...
d5 {[%clk 0:02:59]} 3. e5 {[%clk 0:03:01.6]} 3... c5 {[%clk 0:02:58.8]} 4. c3
{[%clk 0:03:02.3]} 4... Nc6 {[%clk 0:02:59.1]} 5. Nf3 {[%clk 0:03:01.6]} 5...
Bd7 {[%clk 0:02:59.2]} 6. Be2 {[%clk 0:03:01.6]} 6... f5 {[%clk 0:02:54.5]} 7.
O-O {[%clk 0:02:53.5]} 7... Be7 {[%clk 0:02:39.9]} 8. c4 {[%clk 0:02:51.2]} 8...
dxc4 {[%clk 0:02:23.8]} 9. d5 {[%clk 0:02:40.7]} 9... exd5 {[%clk 0:02:21.1]}
10. Qxd5 {[%clk 0:02:41.6]} 10... Nb4 {[%clk 0:02:13.1]} 11. Qxc4 {[%clk
0:02:41.4]} 11... b5 {[%clk 0:02:11.7]} 12. Qc3 {[%clk 0:02:29.5]} 12... Nd5
{[%clk 0:02:02.4]} 13. Qc2 {[%clk 0:02:21]} 13... Nb4 {[%clk 0:01:28.7]} 14. Qb3
{[%clk 0:02:21]} 14... Qb6 {[%clk 0:01:27.6]} 15. Nc3 {[%clk 0:02:17.7]} 15...
Be6 {[%clk 0:01:18.6]} 16. Qd1 {[%clk 0:02:14.6]} 16... a6 {[%clk 0:01:14.6]}
17. a3 {[%clk 0:02:13]} 17... Rd8 {[%clk 0:01:15.1]} 18. Bd2 {[%clk 0:02:11.6]}
18... Nd3 {[%clk 0:01:12.3]} 19. Qc2 {[%clk 0:02:09.8]} 19... c4 {[%clk
0:01:09.5]} 20. Be3 {[%clk 0:02:01.9]} 20... Bc5 {[%clk 0:01:07.9]} 21. Bxc5
{[%clk 0:02:02]} 21... Qxc5 {[%clk 0:01:07.9]} 22. Rad1 {[%clk 0:02:02.6]} 22...
Nxe5 {[%clk 0:01:02.1]} 23. Rxd8+ {[%clk 0:02:01.5]} 23... Kxd8 {[%clk 0:01:02]}
24. Ng5 {[%clk 0:01:57.5]} 24... Ke7 {[%clk 0:00:46.4]} 25. Re1 {[%clk 0:01:23]}
25... Nf6 {[%clk 0:00:36.8]} 26. Bf1 {[%clk 0:01:21.9]} 26... Re8 {[%clk
0:00:27.6]} 27. Qe2 {[%clk 0:01:14.8]} 27... Nfg4 {[%clk 0:00:19.5]} 28. h3
{[%clk 0:01:10.7]} 28... Kf6 {[%clk 0:00:04]} 29. Nxe6 {[%clk 0:01:06.8]} 29...
Rxe6 {[%clk 0:00:04.4]} 30. hxg4 {[%clk 0:01:07.4]} 30... Nf3+ {[%clk
0:00:04.7]} 31. Qxf3 {[%clk 0:01:06]} 31... Rxe1 {[%clk 0:00:05.3]} 32. Nd5+
{[%clk 0:00:57.5]} 32... Ke6 {[%clk 0:00:04.9]} 33. Qxf5+ {[%clk 0:00:56.7]}
33... Kd6 {[%clk 0:00:05.4]} 34. Qf4+ {[%clk 0:00:50.5]} 34... Kxd5 {[%clk
0:00:04.9]} 35. Qd2+ {[%clk 0:00:51.1]} 35... Kc6 {[%clk 0:00:04.9]} 36. Qxe1
{[%clk 0:00:51.3]} 36... Qd4 {[%clk 0:00:05.3]} 37. Qc3 {[%clk 0:00:46.9]} 1-0

[Event "Early-Titled-Tuesday-Blitz-September-26-2023"]
[Site "Chess.com"]
[Date "2023.09.26"]
[Round "7"]
[White "venturov"]
[Black "azikom"]
[Result "0-1"]
[WhiteElo "2457"]
[BlackElo "2639"]
[TimeControl "180+1"]
[EndTime "9:18:49 PDT"]
[Termination "azikom won by checkmate"]

1. e4 {[%clk 0:03:00.9]} 1... c5 {[%clk 0:02:59.5]} 2. Nf3 {[%clk 0:03:00.3]}
2... e6 {[%clk 0:02:59.5]} 3. d4 {[%clk 0:02:59.4]} 3... cxd4 {[%clk 0:02:59.8]}
4. Nxd4 {[%clk 0:03:00.3]} 4... a6 {[%clk 0:03:00.6]} 5. c4 {[%clk 0:02:58.5]}
5... g6 {[%clk 0:02:59.8]} 6. Nc3 {[%clk 0:02:57.1]} 6... Bg7 {[%clk 0:03:00]}
7. Be3 {[%clk 0:02:54.4]} 7... Ne7 {[%clk 0:02:59.7]} 8. Be2 {[%clk 0:02:51.3]}
8... O-O {[%clk 0:02:58.1]} 9. O-O {[%clk 0:02:51.6]} 9... d5 {[%clk 0:02:57.9]}
10. exd5 {[%clk 0:02:47.9]} 10... exd5 {[%clk 0:02:57.9]} 11. cxd5 {[%clk
0:02:48.4]} 11... Nxd5 {[%clk 0:02:57.9]} 12. Nxd5 {[%clk 0:02:48.9]} 12... Qxd5
{[%clk 0:02:58.3]} 13. Bf3 {[%clk 0:02:49.5]} 13... Qa5 {[%clk 0:02:46.5]} 14.
Qb3 {[%clk 0:02:44.3]} 14... Nd7 {[%clk 0:02:42]} 15. Rac1 {[%clk 0:02:31.1]}
15... Ne5 {[%clk 0:02:39.2]} 16. Be2 {[%clk 0:02:26.7]} 16... Ng4 {[%clk
0:02:15.4]} 17. Bxg4 {[%clk 0:02:19.2]} 17... Bxg4 {[%clk 0:02:14.5]} 18. h3
{[%clk 0:02:19.7]} 18... Bc8 {[%clk 0:02:01.3]} 19. Rfd1 {[%clk 0:02:16.3]}
19... Re8 {[%clk 0:01:55.8]} 20. Rc2 {[%clk 0:01:44.2]} 20... b5 {[%clk
0:01:35.1]} 21. Rdc1 {[%clk 0:01:17.3]} 21... Qa4 {[%clk 0:00:49.8]} 22. Qd5
{[%clk 0:01:10.2]} 22... Be6 {[%clk 0:00:40.5]} 23. Nxe6 {[%clk 0:01:06.3]}
23... fxe6 {[%clk 0:00:40.2]} 24. Qd7 {[%clk 0:01:02.9]} 24... Rad8 {[%clk
0:00:37.6]} 25. Qb7 {[%clk 0:00:45.9]} 25... Qxa2 {[%clk 0:00:36.4]} 26. Rc7
{[%clk 0:00:42.8]} 26... Bxb2 {[%clk 0:00:35.6]} 27. Rxh7 {[%clk 0:00:39]} 27...
Rf8 {[%clk 0:00:29.9]} 28. Rcc7 {[%clk 0:00:16.4]} 28... Rd1+ {[%clk 0:00:26.4]}
29. Kh2 {[%clk 0:00:15.6]} 29... Be5+ {[%clk 0:00:26.2]} 30. g3 {[%clk
0:00:15.8]} 30... Rxf2+ {[%clk 0:00:23.7]} 31. Bxf2 {[%clk 0:00:15]} 31... Qxf2+
{[%clk 0:00:23.4]} 32. Qg2 {[%clk 0:00:15.5]} 32... Bxg3# {[%clk 0:00:22.7]} 0-1

[Event "Early-Titled-Tuesday-Blitz-September-26-2023"]
[Site "Chess.com"]
[Date "2023.09.26"]
[Round "7"]
[White "CristianS27"]
[Black "chesslh19"]
[Result "1-0"]
[WhiteElo "2497"]
[BlackElo "2330"]
[TimeControl "180+1"]
[EndTime "9:18:49 PDT"]
[Termination "CristianS27 won on time"]

1. e4 {[%clk 0:02:55.9]} 1... e5 {[%clk 0:02:59.7]} 2. Nf3 {[%clk 0:02:56]} 2...
Nf6 {[%clk 0:02:59.7]} 3. Nxe5 {[%clk 0:02:55.7]} 3... d6 {[%clk 0:02:59.5]} 4.
Nf3 {[%clk 0:02:56.4]} 4... Nxe4 {[%clk 0:02:59.9]} 5. d4 {[%clk 0:02:57.3]}
5... d5 {[%clk 0:03:00.2]} 6. Bd3 {[%clk 0:02:57.9]} 6... Be7 {[%clk 0:03:00.8]}
7. O-O {[%clk 0:02:58.5]} 7... Nc6 {[%clk 0:03:01.5]} 8. Re1 {[%clk 0:02:55.2]}
8... Bg4 {[%clk 0:03:01.3]} 9. c4 {[%clk 0:02:55]} 9... Nf6 {[%clk 0:02:55.9]}
10. cxd5 {[%clk 0:02:53.4]} 10... Bxf3 {[%clk 0:02:50.7]} 11. Qxf3 {[%clk
0:02:54.3]} 11... Qxd5 {[%clk 0:02:50.8]} 12. Qg3 {[%clk 0:02:54.9]} 12... O-O
{[%clk 0:01:35.4]} 13. Nc3 {[%clk 0:02:48.6]} 13... Qxd4 {[%clk 0:01:26.9]} 14.
Nb5 {[%clk 0:01:58.2]} 14... Qg4 {[%clk 0:01:25.8]} 15. Qxg4 {[%clk 0:01:47.9]}
15... Nxg4 {[%clk 0:01:25.6]} 16. Nxc7 {[%clk 0:01:45]} 16... Rad8 {[%clk
0:01:16.1]} 17. Bc4 {[%clk 0:01:29.3]} 17... Bc5 {[%clk 0:00:43]} 18. Be3 {[%clk
0:01:16.6]} 18... Nxe3 {[%clk 0:00:42.3]} 19. fxe3 {[%clk 0:01:17.5]} 19... Ne5
{[%clk 0:00:33.9]} 20. Bb3 {[%clk 0:01:10.7]} 20... Ng4 {[%clk 0:00:22.9]} 21.
Nd5 {[%clk 0:01:06.9]} 21... Rxd5 {[%clk 0:00:18.8]} 22. Bxd5 {[%clk 0:01:06.3]}
22... Nxe3 {[%clk 0:00:19.3]} 23. Bxb7 {[%clk 0:00:58.9]} 23... Nc2+ {[%clk
0:00:17.9]} 24. Kf1 {[%clk 0:00:59.5]} 24... Nxa1 {[%clk 0:00:15.9]} 25. Rxa1
{[%clk 0:01:00.4]} 25... Rb8 {[%clk 0:00:15.6]} 26. Rc1 {[%clk 0:00:56.2]} 26...
Bd4 {[%clk 0:00:08.3]} 27. b3 {[%clk 0:00:51.4]} 27... g6 {[%clk 0:00:04.9]} 28.
Rc7 {[%clk 0:00:50.7]} 28... a5 {[%clk 0:00:03.7]} 29. Bd5 {[%clk 0:00:47.4]}
29... Rf8 {[%clk 0:00:03.8]} 30. h3 {[%clk 0:00:43.8]} 30... Kg7 {[%clk
0:00:03.9]} 31. Ke2 {[%clk 0:00:43.9]} 31... Kf6 {[%clk 0:00:03.6]} 32. Kd3
{[%clk 0:00:43.8]} 32... Bf2 {[%clk 0:00:02.5]} 33. Kc4 {[%clk 0:00:42.5]} 33...
Be1 {[%clk 0:00:01.3]} 34. Ra7 {[%clk 0:00:40.7]} 1-0

[Event "Early-Titled-Tuesday-Blitz-September-26-2023"]
[Site "Chess.com"]
[Date "2023.09.26"]
[Round "7"]
[White "sergeikim"]
[Black "infinitegiantkiller"]
[Result "1-0"]
[WhiteElo "2611"]
[BlackElo "2447"]
[TimeControl "180+1"]
[EndTime "9:18:50 PDT"]
[Termination "sergeikim won by checkmate"]

1. d4 {[%clk 0:03:00.9]} 1... Nf6 {[%clk 0:03:00.3]} 2. c4 {[%clk 0:03:01]} 2...
c5 {[%clk 0:03:01]} 3. d5 {[%clk 0:03:00.7]} 3... e6 {[%clk 0:03:01.9]} 4. Nc3
{[%clk 0:03:00]} 4... exd5 {[%clk 0:03:02.8]} 5. cxd5 {[%clk 0:03:00.6]} 5... d6
{[%clk 0:03:03.7]} 6. e4 {[%clk 0:03:00.7]} 6... g6 {[%clk 0:03:04]} 7. Nge2
{[%clk 0:03:00.9]} 7... Bg7 {[%clk 0:03:03.8]} 8. Ng3 {[%clk 0:03:00.9]} 8...
O-O {[%clk 0:03:04.2]} 9. Be2 {[%clk 0:03:01.1]} 9... Na6 {[%clk 0:03:03.2]} 10.
O-O {[%clk 0:03:00.8]} 10... Nc7 {[%clk 0:03:03.9]} 11. a4 {[%clk 0:03:00.6]}
11... Re8 {[%clk 0:03:02.1]} 12. Bf4 {[%clk 0:03:00.4]} 12... a6 {[%clk
0:03:00.3]} 13. Qd2 {[%clk 0:03:00.6]} 13... Rb8 {[%clk 0:03:00.7]} 14. Bh6
{[%clk 0:03:00.6]} 14... Bd7 {[%clk 0:03:00.2]} 15. Bxg7 {[%clk 0:02:58.9]}
15... Kxg7 {[%clk 0:03:01.1]} 16. f4 {[%clk 0:02:58.1]} 16... b5 {[%clk
0:02:58.2]} 17. e5 {[%clk 0:02:38.1]} 17... dxe5 {[%clk 0:02:57.9]} 18. f5
{[%clk 0:02:38.4]} 18... e4 {[%clk 0:02:40.7]} 19. d6 {[%clk 0:02:34.9]} 19...
Na8 {[%clk 0:02:36.2]} 20. fxg6 {[%clk 0:02:32]} 20... hxg6 {[%clk 0:02:34.9]}
21. Qg5 {[%clk 0:02:31.1]} 21... b4 {[%clk 0:02:26.7]} 22. Rxf6 {[%clk
0:02:26.1]} 22... bxc3 {[%clk 0:02:21.3]} 23. bxc3 {[%clk 0:02:26.3]} 23... Re6
{[%clk 0:02:00.2]} 24. Raf1 {[%clk 0:02:22.4]} 24... Rxf6 {[%clk 0:01:52]} 25.
Nh5+ {[%clk 0:02:18.5]} 25... Kg8 {[%clk 0:01:29.6]} 26. Nxf6+ {[%clk
0:02:18.1]} 26... Kg7 {[%clk 0:01:27.2]} 27. Qe5 {[%clk 0:02:16.7]} 27... Bf5
{[%clk 0:01:07.4]} 28. Nh5+ {[%clk 0:02:13.4]} 28... Kh6 {[%clk 0:01:07.2]} 29.
Qg7+ {[%clk 0:02:07.6]} 29... Kg5 {[%clk 0:01:06.9]} 30. g3 {[%clk 0:01:55.6]}
30... Bg4 {[%clk 0:00:32.1]} 31. Qe5+ {[%clk 0:01:47.9]} 31... f5 {[%clk
0:00:23.6]} 32. Bxg4 {[%clk 0:01:32.3]} 32... Kxg4 {[%clk 0:00:24]} 33. Nf6+
{[%clk 0:01:28.1]} 33... Kg5 {[%clk 0:00:22.7]} 34. h4+ {[%clk 0:01:22.7]} 34...
Kh6 {[%clk 0:00:20.6]} 35. Nd5 {[%clk 0:01:12.5]} 35... Nb6 {[%clk 0:00:18.9]}
36. Ne7 {[%clk 0:01:10.2]} 36... Nc4 {[%clk 0:00:15.5]} 37. Qf4+ {[%clk
0:01:06.6]} 37... Kg7 {[%clk 0:00:15.9]} 38. Qg5 {[%clk 0:01:05.3]} 38... Qe8
{[%clk 0:00:04.2]} 39. Nxf5+ {[%clk 0:01:04]} 39... Kg8 {[%clk 0:00:04.6]} 40.
Ne7+ {[%clk 0:01:03.1]} 40... Kg7 {[%clk 0:00:04]} 41. Qf6+ {[%clk 0:01:01.2]}
41... Kh7 {[%clk 0:00:03.2]} 42. Qe6 {[%clk 0:00:59.4]} 42... Rb6 {[%clk
0:00:02.5]} 43. Rf7+ {[%clk 0:00:56.2]} 43... Kh6 {[%clk 0:00:01.9]} 44. Qxg6#
{[%clk 0:00:55.6]} 1-0

[Event "Early-Titled-Tuesday-Blitz-September-26-2023"]
[Site "Chess.com"]
[Date "2023.09.26"]
[Round "7"]
[White "Gyulamiryan-koryun"]
[Black "Zhani-Z"]
[Result "1-0"]
[WhiteElo "2005"]
[BlackElo "2190"]
[TimeControl "180+1"]
[EndTime "9:18:51 PDT"]
[Termination "Gyulamiryan-koryun won on time"]

1. e4 {[%clk 0:02:48.9]} 1... c5 {[%clk 0:02:56.4]} 2. Nf3 {[%clk 0:02:48.2]}
2... e6 {[%clk 0:02:53.7]} 3. c4 {[%clk 0:02:46.9]} 3... Nc6 {[%clk 0:02:50.4]}
4. Nc3 {[%clk 0:02:46.9]} 4... Nd4 {[%clk 0:02:47.1]} 5. Be2 {[%clk 0:02:46.3]}
5... d6 {[%clk 0:02:39.3]} 6. O-O {[%clk 0:02:44.6]} 6... Nf6 {[%clk 0:02:39.2]}
7. d3 {[%clk 0:02:38.9]} 7... Be7 {[%clk 0:02:33.4]} 8. a3 {[%clk 0:02:34]} 8...
d5 {[%clk 0:02:24.9]} 9. e5 {[%clk 0:02:30.3]} 9... Ng4 {[%clk 0:01:53]} 10.
Nxd4 {[%clk 0:02:08.5]} 10... cxd4 {[%clk 0:01:53.8]} 11. Nb5 {[%clk 0:02:08.4]}
11... Nxe5 {[%clk 0:01:37]} 12. Nxd4 {[%clk 0:02:02.4]} 12... dxc4 {[%clk
0:01:32.5]} 13. dxc4 {[%clk 0:01:58.7]} 13... O-O {[%clk 0:01:28.9]} 14. Bf4
{[%clk 0:01:53.2]} 14... Bf6 {[%clk 0:01:12.4]} 15. Rb1 {[%clk 0:01:38.4]} 15...
Bd7 {[%clk 0:00:57.6]} 16. Nb5 {[%clk 0:01:36.7]} 16... Bxb5 {[%clk 0:00:45.4]}
17. cxb5 {[%clk 0:01:36.7]} 17... Qxd1 {[%clk 0:00:40.2]} 18. Rfxd1 {[%clk
0:01:36.1]} 18... Rfd8 {[%clk 0:00:40.5]} 19. Rxd8+ {[%clk 0:01:29.4]} 19...
Rxd8 {[%clk 0:00:41.4]} 20. h3 {[%clk 0:01:27.3]} 20... Rc8 {[%clk 0:00:29.6]}
21. Be3 {[%clk 0:01:23.1]} 21... b6 {[%clk 0:00:22.4]} 22. b3 {[%clk 0:01:20]}
22... Kf8 {[%clk 0:00:20.1]} 23. f4 {[%clk 0:01:18.4]} 23... Nd7 {[%clk
0:00:19]} 24. a4 {[%clk 0:01:14.9]} 24... Nc5 {[%clk 0:00:16.1]} 25. g4 {[%clk
0:01:02.6]} 25... Ne4 {[%clk 0:00:13.2]} 26. Rc1 {[%clk 0:00:57]} 26... Rxc1+
{[%clk 0:00:08]} 27. Bxc1 {[%clk 0:00:56.3]} 27... Bd4+ {[%clk 0:00:06.7]} 28.
Kg2 {[%clk 0:00:55.2]} 28... Nc3 {[%clk 0:00:05.4]} 29. Bf3 {[%clk 0:00:50.1]}
29... Ke7 {[%clk 0:00:04.2]} 30. f5 {[%clk 0:00:45]} 30... Nd5 {[%clk
0:00:03.9]} 31. Bg5+ {[%clk 0:00:38.7]} 1-0

[Event "Early-Titled-Tuesday-Blitz-September-26-2023"]
[Site "Chess.com"]
[Date "2023.09.26"]
[Round "7"]
[White "halfnatty"]
[Black "FGHSMN"]
[Result "1-0"]
[WhiteElo "2719"]
[BlackElo "2852"]
[TimeControl "180+1"]
[EndTime "9:18:53 PDT"]
[Termination "halfnatty won by resignation"]

1. e4 {[%clk 0:02:55.7]} 1... e5 {[%clk 0:02:59.4]} 2. Nf3 {[%clk 0:02:55.3]}
2... Nc6 {[%clk 0:03:00]} 3. Bb5 {[%clk 0:02:55.4]} 3... a6 {[%clk 0:02:59.9]}
4. Ba4 {[%clk 0:02:55.7]} 4... Nf6 {[%clk 0:03:00.6]} 5. O-O {[%clk 0:02:55.5]}
5... d6 {[%clk 0:03:01.2]} 6. Re1 {[%clk 0:02:54.1]} 6... Bd7 {[%clk 0:03:01.7]}
7. c3 {[%clk 0:02:54]} 7... g6 {[%clk 0:03:02.4]} 8. d4 {[%clk 0:02:53.6]} 8...
Bg7 {[%clk 0:03:03]} 9. Nbd2 {[%clk 0:02:52.2]} 9... O-O {[%clk 0:03:01.1]} 10.
h3 {[%clk 0:02:51.2]} 10... exd4 {[%clk 0:03:01.2]} 11. cxd4 {[%clk 0:02:51.3]}
11... Nb4 {[%clk 0:03:01.5]} 12. Bxd7 {[%clk 0:02:45.4]} 12... Qxd7 {[%clk
0:03:01]} 13. Qb3 {[%clk 0:02:45.1]} 13... a5 {[%clk 0:02:59.7]} 14. a3 {[%clk
0:02:44.6]} 14... Nc6 {[%clk 0:02:57.9]} 15. d5 {[%clk 0:02:41.3]} 15... Nb8
{[%clk 0:02:52.7]} 16. Nf1 {[%clk 0:02:35.1]} 16... Na6 {[%clk 0:02:51.8]} 17.
Ng3 {[%clk 0:02:33.3]} 17... Nc5 {[%clk 0:02:49.2]} 18. Qc2 {[%clk 0:02:33.2]}
18... Rfe8 {[%clk 0:02:49.2]} 19. Bd2 {[%clk 0:02:21]} 19... a4 {[%clk
0:02:47.6]} 20. Bb4 {[%clk 0:02:14.4]} 20... Nb3 {[%clk 0:02:46.8]} 21. Rad1
{[%clk 0:02:14.1]} 21... Rac8 {[%clk 0:02:31.6]} 22. Qc4 {[%clk 0:01:52.9]}
22... Qe7 {[%clk 0:02:10.6]} 23. e5 {[%clk 0:01:45.9]} 23... Nd7 {[%clk
0:02:07.3]} 24. exd6 {[%clk 0:01:41.6]} 24... Qd8 {[%clk 0:02:05.2]} 25. Rxe8+
{[%clk 0:01:24.7]} 25... Qxe8 {[%clk 0:02:06.1]} 26. dxc7 {[%clk 0:01:23.8]}
26... Nb6 {[%clk 0:02:00.1]} 27. Qf4 {[%clk 0:01:23.5]} 27... Qd7 {[%clk
0:01:54.2]} 28. d6 {[%clk 0:01:17.9]} 28... Re8 {[%clk 0:01:54.6]} 29. Ne4
{[%clk 0:01:15.2]} 29... f5 {[%clk 0:01:40.5]} 30. Nc5 {[%clk 0:01:10.6]} 30...
Nxc5 {[%clk 0:01:41.1]} 31. Bxc5 {[%clk 0:01:10.8]} 31... Nc8 {[%clk 0:01:42]}
32. Qc4+ {[%clk 0:01:09]} 32... Kh8 {[%clk 0:01:42.6]} 33. Ng5 {[%clk
0:01:06.8]} 33... Bxb2 {[%clk 0:01:41.5]} 34. Rb1 {[%clk 0:00:50.8]} 34... Bf6
{[%clk 0:01:37.3]} 35. Nf3 {[%clk 0:00:44.1]} 35... b6 {[%clk 0:01:34.2]} 36.
Bb4 {[%clk 0:00:41.2]} 36... Re4 {[%clk 0:01:19.8]} 37. Qd5 {[%clk 0:00:40]}
37... Kg7 {[%clk 0:01:17.4]} 38. Rc1 {[%clk 0:00:39.6]} 38... Re6 {[%clk
0:01:08.5]} 39. Qc6 {[%clk 0:00:37]} 39... Qf7 {[%clk 0:00:59.2]} 40. Qxa4
{[%clk 0:00:37]} 40... Bb2 {[%clk 0:00:52.8]} 41. d7 {[%clk 0:00:33.4]} 41... b5
{[%clk 0:00:49.9]} 42. Qxb5 {[%clk 0:00:28.1]} 42... Na7 {[%clk 0:00:49.8]} 43.
Qa4 {[%clk 0:00:21.7]} 43... Bxc1 {[%clk 0:00:49.8]} 44. d8=Q {[%clk 0:00:21.4]}
44... Bf4 {[%clk 0:00:45.6]} 45. Bc3+ {[%clk 0:00:21.2]} 45... Kh6 {[%clk
0:00:44.9]} 46. Qxf4+ {[%clk 0:00:21.4]} 1-0

[Event "Early-Titled-Tuesday-Blitz-September-26-2023"]
[Site "Chess.com"]
[Date "2023.09.26"]
[Round "7"]
[White "Dewarfd"]
[Black "AsaHoffmann"]
[Result "1-0"]
[WhiteElo "2156"]
[BlackElo "2393"]
[TimeControl "180+1"]
[EndTime "9:18:53 PDT"]
[Termination "Dewarfd won by resignation"]

1. d4 {[%clk 0:03:00]} 1... Nf6 {[%clk 0:02:57.7]} 2. e3 {[%clk 0:03:00]} 2...
b6 {[%clk 0:02:57]} 3. Nf3 {[%clk 0:02:59.5]} 3... Bb7 {[%clk 0:02:56.7]} 4. Bd3
{[%clk 0:02:59.6]} 4... d6 {[%clk 0:02:56.7]} 5. O-O {[%clk 0:02:56]} 5... Nbd7
{[%clk 0:02:56.6]} 6. b4 {[%clk 0:02:56.2]} 6... e5 {[%clk 0:02:56.1]} 7. Be2
{[%clk 0:02:42.1]} 7... Be7 {[%clk 0:02:54.9]} 8. Bb2 {[%clk 0:02:42.1]} 8... e4
{[%clk 0:02:49.7]} 9. Nfd2 {[%clk 0:02:42.8]} 9... c5 {[%clk 0:02:47.6]} 10. a3
{[%clk 0:02:39.2]} 10... cxd4 {[%clk 0:02:39.3]} 11. Bxd4 {[%clk 0:02:35.5]}
11... O-O {[%clk 0:02:32.7]} 12. c4 {[%clk 0:02:35.1]} 12... d5 {[%clk
0:02:32.1]} 13. Nc3 {[%clk 0:02:30.2]} 13... dxc4 {[%clk 0:02:24.4]} 14. Nxc4
{[%clk 0:02:15.4]} 14... Rc8 {[%clk 0:02:23.9]} 15. Qb3 {[%clk 0:02:13.6]} 15...
a6 {[%clk 0:02:21.2]} 16. Rfd1 {[%clk 0:02:08.9]} 16... Qc7 {[%clk 0:02:17.9]}
17. Rac1 {[%clk 0:02:04.8]} 17... b5 {[%clk 0:02:10.6]} 18. Na5 {[%clk
0:02:02.2]} 18... Qb8 {[%clk 0:02:03.3]} 19. Nxb7 {[%clk 0:01:37.4]} 19... Qxb7
{[%clk 0:02:02.8]} 20. Bf1 {[%clk 0:01:35.2]} 20... Nb6 {[%clk 0:01:58.8]} 21.
Bxb6 {[%clk 0:01:23.6]} 21... Qxb6 {[%clk 0:01:58.1]} 22. Ne2 {[%clk 0:01:15.6]}
22... Rxc1 {[%clk 0:01:48.9]} 23. Rxc1 {[%clk 0:01:16]} 23... Rd8 {[%clk
0:01:48.7]} 24. Nd4 {[%clk 0:01:15.6]} 24... g6 {[%clk 0:01:43.9]} 25. h3 {[%clk
0:01:16.2]} 25... Qb7 {[%clk 0:01:39.3]} 26. Qc3 {[%clk 0:01:12.3]} 26... Nd5
{[%clk 0:01:36]} 27. Qc6 {[%clk 0:01:10]} 27... Qxc6 {[%clk 0:01:32.5]} 28. Nxc6
{[%clk 0:01:10.2]} 28... Re8 {[%clk 0:01:32.7]} 29. Nxe7+ {[%clk 0:01:05.5]}
29... Rxe7 {[%clk 0:01:31.6]} 30. Rc6 {[%clk 0:01:05.4]} 30... Ra7 {[%clk
0:01:19.6]} 31. g4 {[%clk 0:01:05.9]} 31... h6 {[%clk 0:01:16.7]} 32. Bg2 {[%clk
0:01:05.6]} 32... f5 {[%clk 0:01:06.7]} 33. gxf5 {[%clk 0:01:05.9]} 33... gxf5
{[%clk 0:01:06.4]} 34. Rxh6 {[%clk 0:01:02.7]} 34... Kg7 {[%clk 0:01:05.4]} 35.
Rd6 {[%clk 0:01:01.7]} 35... Nc3 {[%clk 0:00:59.3]} 36. h4 {[%clk 0:00:57.9]}
36... Nb1 {[%clk 0:00:58.2]} 37. Bh3 {[%clk 0:00:58.1]} 37... Nxa3 {[%clk
0:00:48.6]} 38. Bxf5 {[%clk 0:00:57.7]} 38... Nc2 {[%clk 0:00:46.6]} 39. Bxe4
{[%clk 0:00:45.4]} 39... Nxb4 {[%clk 0:00:46.2]} 40. h5 {[%clk 0:00:44.4]} 40...
Re7 {[%clk 0:00:41.9]} 41. h6+ {[%clk 0:00:41.6]} 41... Kg8 {[%clk 0:00:40.9]}
42. f3 {[%clk 0:00:41.7]} 42... Kf7 {[%clk 0:00:37.1]} 43. h7 {[%clk 0:00:39.3]}
43... Re8 {[%clk 0:00:36.8]} 44. Bg6+ {[%clk 0:00:38.4]} 44... Ke7 {[%clk
0:00:35.3]} 45. Bxe8 {[%clk 0:00:37.6]} 45... Kxd6 {[%clk 0:00:35.4]} 46. h8=Q
{[%clk 0:00:37.8]} 46... Kc5 {[%clk 0:00:35.3]} 47. Qc3+ {[%clk 0:00:37.2]} 1-0